bitfinex/quotes_BTCUSD_20210402
["timestamp","ask_amount","ask_price","bid_price","bid_amount"]
[1617366098899,0.14445353,59360.0,59359.0,0.05]
[1617366099296,0.42328553,59360.0,59359.0,0.05]
[1617366099502,0.14445353,59360.0,59359.0,0.05]
[1617366099709,0.53238953,59360.0,59359.0,0.05]
[1617366100109,0.81122153,59360.0,59359.0,0.05]
[1617366100512,0.96622153,59360.0,59359.0,0.05]
[1617366101710,0.68738953,59360.0,59359.0,0.05]
[1617366103643,0.68738953,59360.0,59359.0,0.39078]
[1617366104048,0.29945353,59360.0,59359.0,0.44078]
[1617366104253,0.14445353,59360.0,59359.0,4.89362316]
[1617366104453,0.14445353,59360.0,59359.0,5.1935669]
[1617366104653,0.14445353,59360.0,59359.0,6.4043269]
[1617366105066,0.14445353,59360.0,59359.0,6.6569409]
[1617366105659,0.14445353,59360.0,59359.0,6.8629409]
[1617366107259,0.14445353,59360.0,59359.0,7.02407535]
[1617366110715,0.14445353,59360.0,59359.0,8.02407535]
[1617366110913,0.14445353,59360.0,59359.0,7.02407535]
[1617366112733,0.14445353,59360.0,59359.0,3.35407535]
[1617366112940,0.14445353,59360.0,59359.0,3.31407535]
[1617366113138,0.14445353,59360.0,59359.0,4.16407535]
[1617366113545,0.14445353,59360.0,59359.0,3.14807535]
[1617366113945,0.14445353,59360.0,59359.0,2.74807535]
[1617366114138,0.14445353,59360.0,59359.0,4.13807535]
[1617366114542,0.14445353,59360.0,59359.0,2.74807535]
[1617366114744,0.14445353,59360.0,59359.0,2.59641819]
[1617366115147,0.14445353,59360.0,59359.0,3.15641819]
[1617366115342,0.14445353,59360.0,59359.0,2.69641819]
[1617366115574,0.14445353,59360.0,59359.0,2.90065819]
[1617366115974,0.14445353,59360.0,59359.0,2.35158774]
[1617366116174,0.14445353,59360.0,59359.0,1.48658774]
[1617366116576,0.14445353,59360.0,59359.0,0.936644]
[1617366116776,0.14445353,59360.0,59359.0,0.793394]
[1617366116972,0.14445353,59360.0,59359.0,1.18133]
[1617366118190,0.14445353,59360.0,59359.0,1.99133]
[1617366118393,0.14445353,59360.0,59359.0,2.4429309]
[1617366118591,0.14355585,59360.0,59359.0,3.85127374]
[1617366118789,0.14355585,59360.0,59359.0,2.05133]
[1617366118992,0.14355585,59360.0,59359.0,2.35127374]
[1617366119191,0.14355585,59360.0,59359.0,3.89378455]
[1617366119391,0.14355585,59360.0,59359.0,2.84778455]
[1617366119592,0.14355585,59360.0,59359.0,2.54784081]
[1617366120191,0.14355585,59360.0,59359.0,2.84778455]
[1617366120597,0.14355585,59360.0,59359.0,2.54784081]
[1617366120826,0.14355585,59360.0,59359.0,2.84778455]
[1617366121025,0.14355585,59360.0,59359.0,2.84798455]
[1617366122027,0.14355585,59360.0,59359.0,4.17798455]
[1617366122229,0.14265817,59360.0,59359.0,3.93804081]
[1617366122428,0.14265817,59360.0,59359.0,2.84798455]
[1617366122628,0.14265817,59360.0,59359.0,2.54804081]
[1617366123030,0.14265817,59360.0,59359.0,3.73804081]
[1617366123442,0.14265817,59360.0,59359.0,4.03798455]
[1617366124436,0.14265817,59360.0,59359.0,2.84798455]
[1617366124639,0.14265817,59360.0,59359.0,2.54804081]
[1617366125036,0.14265817,59360.0,59359.0,4.48798455]
[1617366125639,0.14265817,59360.0,59359.0,2.84798455]
[1617366126062,0.14265817,59360.0,59359.0,3.08804081]
[1617366126264,0.14265817,59360.0,59359.0,3.38798455]
[1617366126704,0.14265817,59360.0,59359.0,2.39638365]
[1617366126904,0.14265817,59360.0,59359.0,2.84798455]
[1617366127504,0.14265817,59360.0,59359.0,2.54784081]
[1617366127903,0.14265817,59360.0,59359.0,2.39618365]
[1617366128309,0.14265817,59360.0,59359.0,2.54784081]
[1617366128502,0.14265817,59360.0,59359.0,2.84778455]
[1617366130116,0.14265817,59360.0,59359.0,2.54784081]
[1617366130314,0.14265817,59360.0,59359.0,2.84778455]
[1617366130516,0.14265817,59360.0,59359.0,2.39618365]
[1617366130716,0.14265817,59360.0,59359.0,2.54784081]
[1617366131324,0.14265817,59360.0,59359.0,2.84778455]
[1617366131721,0.14265817,59360.0,59359.0,2.69612739]
[1617366131924,0.14265817,59360.0,59359.0,3.21618365]
[1617366132121,0.14265817,59360.0,59359.0,3.51612739]
[1617366132521,0.14265817,59360.0,59359.0,2.39618365]
[1617366133123,0.14265817,59360.0,59359.0,2.23218365]
[1617366133524,0.14265817,59360.0,59359.0,1.83218365]
[1617366133947,0.14265817,59360.0,59359.0,2.13212739]
[1617366134148,0.14265817,59360.0,59359.0,1.83218365]
[1617366134350,0.14265817,59360.0,59359.0,2.13212739]
[1617366134548,0.14265817,59360.0,59359.0,1.83218365]
[1617366134748,0.14265817,59360.0,59359.0,2.13212739]
[1617366134947,0.14265817,59360.0,59359.0,1.83218365]
[1617366135148,0.14265817,59360.0,59359.0,2.13212739]
[1617366135349,0.14265817,59360.0,59359.0,1.83218365]
[1617366135549,0.14265817,59360.0,59359.0,2.23218365]
[1617366135947,0.13265817,59360.0,59359.0,3.91218365]
[1617366136151,0.13265817,59360.0,59359.0,4.21212739]
[1617366136351,0.13265817,59360.0,59359.0,3.91218365]
[1617366136766,0.09994317,59360.0,59359.0,3.91218365]
[1617366136966,0.09994317,59360.0,59359.0,4.36812739]
[1617366137170,0.09994317,59360.0,59359.0,4.06818365]
[1617366137366,0.09994317,59360.0,59359.0,4.36812739]
[1617366138769,0.09994317,59360.0,59359.0,4.06818365]
[1617366138968,0.09994317,59360.0,59359.0,4.36812739]
[1617366139207,0.09994317,59360.0,59359.0,4.06818365]
[1617366139402,0.09994317,59360.0,59359.0,4.36812739]
[1617366139802,0.09994317,59360.0,59359.0,4.06818365]
[1617366140204,0.09994317,59360.0,59359.0,4.36812739]
[1617366140606,0.09994317,59360.0,59359.0,2.68812739]
[1617366140805,0.09994317,59360.0,59359.0,2.23218365]
[1617366141007,0.09994317,59360.0,59359.0,2.53212739]
[1617366141646,0.09994317,59360.0,59359.0,2.23218365]
[1617366141855,0.09994317,59360.0,59359.0,2.53212739]
[1617366142045,0.09994317,59360.0,59359.0,2.23218365]
[1617366142441,0.09994317,59360.0,59359.0,2.53212739]
[1617366142644,0.09994317,59360.0,59359.0,2.38384081]
[1617366142843,0.09994317,59360.0,59359.0,2.53212739]
[1617366143448,0.09994317,59360.0,59359.0,1.98218365]
[1617366143642,0.09994317,59360.0,59359.0,2.30648365]
[1617366144648,0.09994317,59360.0,59359.0,2.60642739]
[1617366144845,0.09994317,59360.0,59359.0,2.30648365]
[1617366145045,0.09994317,59360.0,59359.0,2.60642739]
[1617366145448,0.09994317,59360.0,59359.0,2.30648365]
[1617366145844,0.09994317,59360.0,59359.0,2.60642739]
[1617366146045,0.09994317,59360.0,59359.0,2.30648365]
[1617366146246,0.09994317,59360.0,59359.0,2.60642739]
[1617366146451,0.09994317,59360.0,59359.0,2.21849139]
[1617366146847,0.09994317,59360.0,59359.0,2.60642739]
[1617366147280,0.09994317,59360.0,59359.0,2.25923739]
[1617366147484,0.09994317,59360.0,59359.0,2.11095081]
[1617366147677,0.09994317,59360.0,59359.0,2.41089455]
[1617366147878,0.09994317,59360.0,59359.0,2.25923739]
[1617366149082,0.09994317,59360.0,59359.0,2.41089455]
[1617366149282,0.09994317,59360.0,59359.0,2.61589455]
[1617366149708,0.09994317,59360.0,59359.0,4.56589455]
[1617366150106,0.09994317,59360.0,59359.0,2.96589455]
[1617366150707,0.09994317,59360.0,59359.0,4.69589455]
[1617366152349,0.09994317,59360.0,59359.0,2.96589455]
[1617366152735,0.09994317,59360.0,59359.0,4.02589455]
[1617366152936,0.09994317,59360.0,59359.0,2.96589455]
[1617366153736,0.09994317,59360.0,59359.0,4.18589455]
[1617366154337,0.09994317,59360.0,59359.0,2.96589455]
[1617366154738,0.09994317,59360.0,59359.0,3.80589455]
[1617366154945,0.09994317,59360.0,59359.0,3.01589455]
[1617366155148,0.09994317,59360.0,59359.0,2.70923739]
[1617366155544,0.09994317,59360.0,59359.0,2.86089455]
[1617366155745,0.09994317,59360.0,59359.0,4.01923739]
[1617366155947,0.09994317,59360.0,59359.0,2.70923739]
[1617366156795,0.09994317,59360.0,59359.0,3.12929365]
[1617366156997,0.09994317,59360.0,59359.0,3.58089455]
[1617366157203,0.09994317,59360.0,59359.0,3.73789455]
[1617366157803,0.09994317,59360.0,59359.0,5.92789455]
[1617366158203,0.09065499,59360.0,59359.0,6.72789455]
[1617366158404,0.09065499,59360.0,59359.0,5.92789455]
[1617366158602,0.09065499,59360.0,59359.0,5.02789455]
[1617366159205,0.06370378,59360.0,59359.0,6.72789455]
[1617366159611,0.06370378,59360.0,59359.0,6.09789455]
[1617366159808,0.06370378,59360.0,59359.0,5.02789455]
[1617366160404,0.06370378,59360.0,59359.0,5.26789455]
[1617366161004,0.06370378,59360.0,59359.0,3.97789455]
[1617366161604,0.06370378,59360.0,59359.0,6.77789455]
[1617366162609,0.06370378,59360.0,59359.0,6.81789455]
[1617366162839,0.05370378,59360.0,59359.0,7.86789455]
[1617366163038,3.78e-06,59360.0,59359.0,9.7848552]
[1617366163243,0.005,59389.0,59379.0,0.156]
[1617366163244,0.00492362,59385.0,59379.0,0.156]
[1617366163438,0.00492362,59385.0,59380.0,0.6597005]
[1617366163639,0.00492532,59387.0,59381.0,0.29994374]
[1617366164033,0.00492532,59387.0,59383.0,0.06733146]
[1617366164235,0.00492532,59387.0,59385.0,0.252493]
[1617366164636,0.0019701,59386.0,59385.0,0.252493]
[1617366164836,0.0049254,59387.0,59385.0,0.252493]
[1617366165040,0.00197013,59386.0,59385.0,0.252493]
[1617366165233,0.00492541,59387.0,59385.0,0.432493]
[1617366165653,0.00750697,59386.0,59385.0,0.482493]
[1617366166054,0.00947721,59386.0,59385.0,0.482493]
[1617366166253,0.01243249,59386.0,59385.0,0.482493]
[1617366167458,0.00750697,59386.0,59385.0,0.482493]
[1617366167655,0.00750697,59386.0,59385.0,0.302493]
[1617366168284,0.00947594,59386.0,59381.0,0.336653]
[1617366168487,0.00947594,59386.0,59372.0,0.35516524]
[1617366168684,0.0019688,59385.0,59372.0,1.09702734]
[1617366168883,0.002,59383.0,59374.0,0.35516524]
[1617366169092,0.002,59383.0,59374.0,0.70510898]
[1617366169285,0.002,59383.0,59366.0,0.7470836]
[1617366169482,0.002,59379.0,59368.0,0.39191836]
[1617366169687,0.002,59379.0,59371.0,0.252568]
[1617366169885,0.00396801,59383.0,59372.0,0.39191836]
[1617366170084,0.00396801,59383.0,59373.0,0.35516524]
[1617366170290,0.002,59383.0,59374.0,0.29994374]
[1617366170483,0.002,59383.0,59375.0,0.29994374]
[1617366170715,0.002,59383.0,59373.0,0.004]
[1617366171110,0.00750779,59382.0,59373.0,0.004]
[1617366171312,0.00750779,59382.0,59374.0,0.17]
[1617366171507,0.00750779,59382.0,59374.0,0.22]
[1617366172132,0.00750779,59382.0,59374.0,0.51994374]
[1617366172334,0.00750779,59382.0,59375.0,0.387936]
[1617366172531,0.00750779,59382.0,59375.0,0.68787974]
[1617366172742,0.00750779,59382.0,59376.0,0.29994374]
[1617366173135,0.00750779,59382.0,59374.0,0.59750274]
[1617366173538,0.00750779,59382.0,59375.0,0.387936]
[1617366173736,0.00750779,59382.0,59375.0,0.29994374]
[1617366173935,0.00750779,59382.0,59374.0,0.59750274]
[1617366174339,0.00750779,59382.0,59375.0,0.387936]
[1617366174538,0.00750779,59382.0,59375.0,0.68787974]
[1617366174739,0.00750779,59382.0,59376.0,0.55249274]
[1617366175038,0.00750779,59382.0,59376.0,0.252549]
[1617366175239,0.00750779,59382.0,59377.0,0.05]
[1617366175442,0.00084205,59381.0,59377.0,0.05]
[1617366175638,0.00084205,59381.0,59373.0,0.39591836]
[1617366175860,0.00084205,59381.0,59374.0,0.39994374]
[1617366176062,0.00084205,59381.0,59374.0,0.44994374]
[1617366177062,0.00084205,59381.0,59375.0,0.387936]
[1617366177263,0.00084205,59381.0,59376.0,0.2]
[1617366177461,0.00084205,59381.0,59377.0,0.014987]
[1617366177661,0.00084205,59381.0,59378.0,0.387936]
[1617366178263,0.00084205,59381.0,59377.0,0.05]
[1617366178264,0.00084205,59381.0,59377.0,0.302542]
[1617366178482,0.00084205,59381.0,59378.0,0.14]
[1617366178683,0.00084205,59381.0,59378.0,0.05]
[1617366178890,0.00084205,59381.0,59379.0,0.387936]
[1617366179088,0.00084205,59381.0,59380.0,2.16]
[1617366179290,0.00084205,59381.0,59380.0,2.41253]
[1617366179487,0.00084205,59381.0,59380.0,0.597488]
[1617366179885,0.00084205,59381.0,59380.0,0.48253]
[1617366180486,0.00084205,59381.0,59380.0,0.25253]
[1617366181500,0.00084205,59381.0,59380.0,0.30253]
[1617366184125,0.57235827,59381.0,59380.0,0.30253]
[1617366186771,0.57235827,59381.0,59377.0,0.05]
[1617366186965,0.57235827,59381.0,59376.0,0.31990008]
[1617366187168,0.57235827,59381.0,59376.0,0.36990008]
[1617366187765,0.57235827,59381.0,59376.0,0.35300177]
[1617366187969,0.57235827,59381.0,59376.0,0.302559]
[1617366188176,0.2719175,59380.0,59376.0,0.302559]
[1617366188771,0.56735827,59381.0,59376.0,0.302559]
[1617366188981,0.2719175,59380.0,59376.0,0.35243551]
[1617366189378,0.56735827,59381.0,59376.0,0.302559]
[1617366189584,0.2719175,59380.0,59376.0,0.302559]
[1617366192007,0.56735827,59381.0,59376.0,0.302559]
[1617366192404,0.2719175,59380.0,59376.0,0.302559]
[1617366192604,0.56735827,59381.0,59376.0,0.302559]
[1617366194236,0.2719175,59380.0,59377.0,0.15165716]
[1617366194436,0.2719175,59380.0,59376.0,0.302559]
[1617366194636,0.56735827,59381.0,59376.0,0.302559]
[1617366195033,0.2719175,59380.0,59376.0,0.302559]
[1617366195237,0.56735827,59381.0,59376.0,0.302559]
[1617366195633,0.56735827,59381.0,59377.0,0.29165716]
[1617366195835,0.56735827,59381.0,59377.0,0.14]
[1617366196034,0.56735827,59381.0,59378.0,0.15165716]
[1617366196240,0.56735827,59381.0,59379.0,0.30254]
[1617366196443,0.56735827,59381.0,59379.0,0.35254]
[1617366196638,0.56735827,59381.0,59380.0,0.25165716]
[1617366196860,0.56735827,59381.0,59380.0,0.77959316]
[1617366197462,0.56735827,59381.0,59380.0,0.24]
[1617366197661,0.56735827,59381.0,59380.0,0.1]
[1617366199061,0.56820029,59381.0,59380.0,0.1]
[1617366199491,0.56820029,59381.0,59379.0,0.25254]
[1617366201287,0.56320029,59381.0,59379.0,0.25254]
[1617366201689,0.56320029,59381.0,59380.0,0.15165716]
[1617366202340,0.56320029,59381.0,59380.0,0.387936]
[1617366202740,0.56320029,59381.0,59379.0,0.25254]
[1617366205744,0.56320029,59381.0,59376.0,0.252558]
[1617366205941,0.56320029,59381.0,59379.0,0.00223571]
[1617366206450,2.4198535,59380.0,59379.0,0.00223571]
[1617366206653,2.7553332,59380.0,59379.0,0.00223571]
[1617366207245,2.7504135,59380.0,59379.0,0.00223571]
[1617366208065,3.5804135,59380.0,59379.0,0.00223571]
[1617366208267,2.8504135,59380.0,59379.0,0.00223571]
[1617366208465,2.7504135,59380.0,59379.0,0.00223571]
[1617366209264,2.7454135,59380.0,59379.0,0.00223571]
[1617366209667,2.74625554,59380.0,59379.0,0.00223571]
[1617366209867,1.33125554,59380.0,59379.0,0.00223571]
[1617366210083,1.75069554,59380.0,59379.0,0.00223571]
[1617366210481,1.00069554,59380.0,59379.0,0.00223571]
[1617366211087,1.89069554,59380.0,59379.0,0.00223571]
[1617366211687,1.00069554,59380.0,59379.0,0.00223571]
[1617366212912,0.72877804,59380.0,59379.0,0.00223571]
[1617366213115,0.87909944,59380.0,59379.0,0.00223571]
[1617366214919,0.72877804,59380.0,59379.0,0.00223571]
[1617366215117,1.8,59379.0,59365.0,0.22352571]
[1617366215341,2.127,59379.0,59371.0,0.252579]
[1617366215548,0.98490246,59378.0,59372.0,0.0044]
[1617366215751,0.59696646,59378.0,59373.0,0.161]
[1617366215945,0.0019665,59379.0,59373.0,0.161]
[1617366216545,0.00575848,59380.0,59373.0,0.161]
[1617366216996,0.00280873,59380.0,59375.0,0.252551]
[1617366217193,0.27346979,59380.0,59375.0,0.05]
[1617366217389,0.00868383,59379.0,59375.0,0.05]
[1617366217595,0.00868383,59379.0,59376.0,0.1]
[1617366217788,0.00868383,59379.0,59372.0,0.1544]
[1617366218387,0.00868383,59379.0,59377.0,0.252552]
[1617366218588,0.00868383,59379.0,59377.0,0.302552]
[1617366219194,0.01064732,59379.0,59377.0,0.252552]
[1617366219390,2.047936,59378.0,59371.0,0.378855]
[1617366219588,0.39,59377.0,59371.0,0.378855]
[1617366219792,0.387936,59376.0,59371.0,0.378855]
[1617366219991,0.01064732,59379.0,59371.0,0.378855]
[1617366220194,0.01064732,59379.0,59372.0,0.1]
[1617366220397,0.01064732,59379.0,59375.0,0.252561]
[1617366220598,0.00868383,59379.0,59375.0,0.302561]
[1617366222196,0.00868383,59379.0,59376.0,0.1]
[1617366222595,0.00868383,59379.0,59376.0,0.15]
[1617366222994,0.00868383,59379.0,59376.0,0.1]
[1617366223223,0.00868383,59379.0,59373.0,0.0546]
[1617366223423,0.0008421,59378.0,59373.0,0.0046]
[1617366224422,0.0008421,59378.0,59377.0,0.252554]
[1617366224623,0.0008421,59378.0,59377.0,0.302554]
[1617366229472,0.0008421,59378.0,59373.0,0.0046]
[1617366229670,0.0008421,59378.0,59372.0,0.15]
[1617366229868,0.0008421,59378.0,59372.0,0.05]
[1617366230674,0.0008421,59378.0,59373.0,0.15165716]
[1617366231095,0.0008421,59378.0,59372.0,0.305]
[1617366231296,0.0008421,59378.0,59374.0,0.252565]
[1617366231698,0.0008421,59378.0,59374.0,0.402565]
[1617366231944,0.00452593,59379.0,59371.0,0.130276]
[1617366232150,0.00452593,59379.0,59359.0,0.1]
[1617366232365,0.387936,59375.0,59359.0,0.1]
[1617366232556,0.252656,59370.0,59359.0,0.1]
[1617366232750,0.387936,59366.0,59359.0,0.1]
[1617366232952,3.87859706,59365.0,59359.0,0.1]
[1617366233147,3.97859706,59365.0,59359.0,0.1]
[1617366233358,0.387936,59361.0,59359.0,0.1]
[1617366233547,3.027936,59360.0,59359.0,0.1]
[1617366233748,1.517936,59360.0,59359.0,0.1]
[1617366234145,0.662936,59360.0,59359.0,0.1]
[1617366234351,0.387936,59360.0,59359.0,0.1]
[1617366234752,1.377936,59360.0,59359.0,0.1]
[1617366236147,0.387936,59360.0,59359.0,0.1]
[1617366236952,0.387936,59360.0,59359.0,0.2]
[1617366239373,0.38877831,59360.0,59359.0,0.2]
[1617366240578,0.00084231,59360.0,59359.0,0.2]
[1617366240784,0.00084231,59360.0,59359.0,2.087936]
[1617366241179,0.00084231,59360.0,59359.0,2.72787974]
[1617366241381,0.00084231,59360.0,59359.0,4.18273974]
[1617366241813,0.00084231,59360.0,59359.0,5.63273974]
[1617366242009,0.00084231,59360.0,59359.0,6.63273974]
[1617366242209,0.00084231,59360.0,59359.0,6.38273974]
[1617366242407,0.00084231,59360.0,59359.0,5.38273974]
[1617366242611,0.00084231,59360.0,59359.0,2.93273974]
[1617366242812,0.08061427,59380.0,59360.0,3.7]
[1617366243015,0.002,59377.0,59366.0,0.25858]
[1617366243214,0.175,59376.0,59366.0,0.25858]
[1617366243415,0.165,59375.0,59369.0,0.004]
[1617366243612,0.165,59375.0,59368.0,0.15]
[1617366243816,0.002,59377.0,59366.0,0.30658]
[1617366244013,0.002,59377.0,59366.0,0.25658]
[1617366244428,0.002,59377.0,59366.0,0.004]
[1617366244631,0.002,59377.0,59363.0,0.0044]
[1617366246227,0.254603,59377.0,59363.0,0.0044]
[1617366246434,0.254603,59377.0,59366.0,0.0056]
[1617366246629,0.002,59377.0,59366.0,0.0056]
[1617366247067,0.002,59377.0,59369.0,0.0044]
[1617366247471,0.002,59377.0,59361.0,0.29994374]
[1617366247671,0.175,59376.0,59361.0,0.29994374]
[1617366248073,0.166771,59376.0,59364.0,0.0054]
[1617366248269,0.49219538,59380.0,59365.0,1.85]
[1617366248270,0.002,59375.0,59365.0,1.85]
[1617366248466,0.002,59375.0,59364.0,0.0054]
[1617366248671,0.002,59375.0,59360.0,0.0046]
[1617366248867,0.0080556,59374.0,59360.0,0.0046]
[1617366249073,0.0080556,59374.0,59362.0,0.252597]
[1617366250075,0.0008422,59373.0,59362.0,0.252597]
[1617366250279,0.0008422,59373.0,59360.0,0.0546]
[1617366250481,0.0008422,59373.0,59360.0,0.0046]
[1617366250679,0.0016,59371.0,59360.0,0.0046]
[1617366254504,0.00803141,59370.0,59360.0,0.0046]
[1617366254725,0.00303141,59370.0,59360.0,0.0046]
[1617366255129,0.00303141,59370.0,59361.0,0.23]
[1617366256526,0.00303141,59370.0,59361.0,0.52994374]
[1617366256941,0.00303141,59370.0,59362.0,0.59494374]
[1617366257126,0.00303141,59370.0,59362.0,0.295]
[1617366259971,0.00750943,59370.0,59362.0,0.295]
[1617366260774,0.00084223,59369.0,59362.0,0.295]
[1617366260974,0.00084223,59369.0,59363.0,0.165]
[1617366261174,0.00084223,59369.0,59360.0,0.0046]
[1617366261373,0.00084223,59369.0,59361.0,0.252606]
[1617366263815,0.00084223,59369.0,59362.0,0.275]
[1617366265428,0.0075095,59368.0,59363.0,0.252601]
[1617366265639,0.06736759,59388.0,59364.0,3.70303724]
[1617366265836,0.00294285,59374.0,59366.0,0.00303724]
[1617366266037,0.00098069,59373.0,59366.0,0.00303724]
[1617366266234,0.00098072,59374.0,59366.0,0.35820248]
[1617366266431,0.00098072,59374.0,59368.0,0.00303724]
[1617366266628,0.00098072,59374.0,59368.0,0.89952541]
[1617366266834,0.00098072,59374.0,59371.0,0.336796]
[1617366267034,0.00098074,59373.0,59372.0,2.605]
[1617366267234,0.0009808,59374.0,59372.0,3.00494374]
[1617366267434,0.0009808,59374.0,59373.0,0.52]
[1617366268061,0.55867949,59419.0,59373.0,0.52]
[1617366268260,0.002,59391.0,59374.0,4.05516524]
[1617366268459,0.002,59391.0,59381.0,0.00303724]
[1617366268659,0.05,59400.0,59385.0,0.00303724]
[1617366268854,0.05,59400.0,59381.0,0.00303724]
[1617366268855,0.002,59398.0,59381.0,0.00303724]
[1617366269055,0.002,59398.0,59380.0,0.00303724]
[1617366270059,0.002,59398.0,59389.0,0.252608]
[1617366270475,0.387936,59394.0,59389.0,0.252608]
[1617366270675,2.467936,59390.0,59389.0,0.252608]
[1617366270874,2.892936,59390.0,59389.0,0.252608]
[1617366271475,0.812936,59390.0,59389.0,0.252608]
[1617366271675,0.387936,59390.0,59389.0,0.252608]
[1617366271872,0.38877789,59390.0,59389.0,0.252608]
[1617366272677,0.00084189,59390.0,59389.0,0.252608]
[1617366274303,0.55084189,59390.0,59389.0,0.252608]
[1617366274703,0.60084189,59390.0,59389.0,0.252608]
[1617366274902,0.05084189,59390.0,59389.0,0.252608]
[1617366275106,0.00084189,59390.0,59389.0,0.252608]
[1617366276353,0.00084189,59390.0,59389.0,0.352608]
[1617366277357,1.10084189,59390.0,59389.0,0.352608]
[1617366277559,1.97150231,59390.0,59389.0,0.352608]
[1617366277766,2.07990231,59390.0,59389.0,0.352608]
[1617366278356,2.02990231,59390.0,59389.0,0.352608]
[1617366278757,0.92990231,59390.0,59389.0,0.352608]
[1617366279359,0.87150231,59390.0,59389.0,0.352608]
[1617366280976,0.38877789,59390.0,59389.0,0.352608]
[1617366281378,1.53877789,59390.0,59389.0,0.352608]
[1617366281578,0.38877789,59390.0,59389.0,0.352608]
[1617366282378,1.20877789,59390.0,59389.0,0.352608]
[1617366282778,1.38877789,59390.0,59389.0,0.352608]
[1617366283377,0.56877789,59390.0,59389.0,0.352608]
[1617366283606,0.38877789,59390.0,59389.0,0.352608]
[1617366284206,1.60877789,59390.0,59389.0,0.352608]
[1617366285011,0.00084189,59390.0,59389.0,0.352608]
[1617366287027,0.00084189,59390.0,59389.0,0.40340367]
[1617366287434,0.00084189,59390.0,59389.0,0.352608]
[1617366293901,0.00084189,59390.0,59389.0,0.812708]
[1617366294116,0.00084189,59390.0,59389.0,1.78936516]
[1617366294319,0.00084189,59390.0,59389.0,1.16936516]
[1617366295110,0.00084189,59390.0,59389.0,1.00736516]
[1617366296317,0.00084189,59390.0,59389.0,1.4073089]
[1617366297135,0.00084189,59390.0,59389.0,1.2023089]
[1617366297535,0.00084189,59390.0,59389.0,1.05065174]
[1617366297933,0.00084189,59390.0,59389.0,0.650708]
[1617366297934,0.62498973,59390.0,59389.0,0.650708]
[1617366300167,0.62498973,59390.0,59389.0,0.352608]
[1617366300366,0.67498973,59390.0,59389.0,0.352608]
[1617366300768,0.67498973,59390.0,59389.0,0.1]
[1617366301168,1.01292573,59390.0,59389.0,0.1]
[1617366301365,1.16792573,59390.0,59389.0,0.1]
[1617366303383,1.09792573,59390.0,59389.0,0.1]
[1617366303983,1.09792573,59390.0,59389.0,0.55881]
[1617366304186,0.71083162,59390.0,59389.0,0.55881]
[1617366304385,0.55583162,59390.0,59389.0,0.55881]
[1617366304620,0.55583162,59390.0,59389.0,0.71046716]
[1617366305021,0.55583162,59390.0,59389.0,0.55881]
[1617366309932,0.56333808,59390.0,59389.0,0.55881]
[1617366312333,0.56333808,59390.0,59389.0,0.81139]
[1617366312756,0.56333808,59390.0,59389.0,0.55881]
[1617366317182,0.56333808,59390.0,59389.0,0.1]
[1617366319008,0.95127408,59390.0,59389.0,0.1]
[1617366319211,1.2681037,59390.0,59389.0,0.1]
[1617366319415,1.5081037,59390.0,59389.0,0.1]
[1617366319809,3.0781037,59390.0,59389.0,0.1]
[1617366320209,3.0281037,59390.0,59389.0,0.1]
[1617366320645,0.387936,59385.0,59376.0,0.9842]
[1617366320847,0.387936,59380.0,59376.0,0.9842]
[1617366321038,0.48875,59380.0,59376.0,0.9842]
[1617366321437,0.135,59379.0,59376.0,0.9842]
[1617366321640,0.31479868,59378.0,59376.0,0.9842]
[1617366321839,0.135,59379.0,59376.0,0.9842]
[1617366323564,2.677936,59377.0,59376.0,0.9842]
[1617366323764,3.172936,59377.0,59376.0,0.9842]
[1617366323962,0.882936,59377.0,59376.0,0.9842]
[1617366324163,0.387936,59377.0,59376.0,0.9842]
[1617366324366,0.437936,59377.0,59376.0,0.9842]
[1617366325359,0.387936,59377.0,59376.0,0.9842]
[1617366325581,0.577936,59377.0,59376.0,0.9842]
[1617366325781,3.057936,59377.0,59369.0,0.252661]
[1617366325984,0.387936,59373.0,59369.0,0.252661]
[1617366326182,0.387936,59370.0,59369.0,0.252661]
[1617366327583,0.47,59372.0,59369.0,0.252661]
[1617366327787,0.10141,59378.0,59370.0,0.00027889]
[1617366327982,0.002,59379.0,59370.0,0.00027889]
[1617366328211,0.155,59378.0,59370.0,0.00027889]
[1617366329214,0.455,59378.0,59370.0,0.00027889]
[1617366329614,0.00084211,59377.0,59370.0,0.00027889]
[1617366330013,0.155,59376.0,59370.0,0.00027889]
[1617366330416,0.18,59375.0,59370.0,0.00027889]
[1617366332434,0.16,59374.0,59370.0,0.00027889]
[1617366332633,0.73,59373.0,59364.0,0.341423]
[1617366332831,0.73,59373.0,59364.0,0.0046]
[1617366333035,0.16,59374.0,59364.0,0.0046]
[1617366333462,0.002,59375.0,59364.0,0.15625716]
[1617366333660,0.002,59375.0,59368.0,0.252667]
[1617366333858,0.00084211,59377.0,59368.0,0.252667]
[1617366335864,0.00835066,59377.0,59368.0,0.252667]
[1617366337087,0.00835066,59377.0,59368.0,0.30361211]
[1617366337770,0.00835066,59377.0,59368.0,0.252667]
[1617366343242,0.00835066,59377.0,59368.0,0.242667]
[1617366343640,0.00835066,59377.0,59368.0,0.293602]
[1617366343842,0.302677,59380.0,59368.0,0.293602]
[1617366344066,0.31297856,59379.0,59368.0,0.293602]
[1617366344866,0.31297856,59379.0,59368.0,0.242667]
[1617366346274,0.3,59378.0,59368.0,0.242667]
[1617366346478,0.3,59378.0,59363.0,0.00303724]
[1617366346479,0.387936,59374.0,59363.0,0.00303724]
[1617366346705,0.71,59373.0,59350.0,0.05047532]
[1617366346903,0.387936,59368.0,59345.0,0.9056]
[1617366347104,0.387936,59363.0,59345.0,0.9056]
[1617366347298,0.3,59362.0,59345.0,0.9056]
[1617366347699,0.22899882,59361.0,59345.0,0.9056]
[1617366347896,0.252789,59356.0,59345.0,0.9056]
[1617366348098,0.3,59355.0,59345.0,0.9056]
[1617366348494,0.387936,59351.0,59345.0,0.9056]
[1617366348694,0.3,59350.0,59345.0,0.9056]
[1617366348890,0.275,59350.0,59345.0,0.9056]
[1617366349098,0.387936,59345.0,59343.0,0.0002]
[1617366349347,0.387936,59344.0,59343.0,0.0002]
[1617366349546,3.22,59343.0,59340.0,8.9e-05]
[1617366349748,0.387936,59341.0,59340.0,8.9e-05]
[1617366349950,2.52,59340.0,59329.0,0.0002]
[1617366350151,0.275,59339.0,59329.0,0.0002]